[Event "Early-Titled-Tuesday-Blitz-August-29-2023"]
[Site "Chess.com"]
[Date "2023.08.29"]
[Round "4"]
[White "ArtemDyachuk"]
[Black "Murad_Ibrahimli"]
[Result "0-1"]
[WhiteElo "2581"]
[BlackElo "2890"]
[TimeControl "180+1"]
[EndTime "8:38:02 PDT"]
[Termination "Murad_Ibrahimli won on time"]

1. e4 {[%clk 0:03:00.9]} 1... g6 {[%clk 0:03:00.5]} 2. d4 {[%clk 0:03:00.5]}
2... Bg7 {[%clk 0:03:01.2]} 3. Nc3 {[%clk 0:03:01]} 3... d6 {[%clk 0:03:01.9]}
4. Nf3 {[%clk 0:03:00.7]} 4... a6 {[%clk 0:03:02.5]} 5. Be3 {[%clk 0:02:59.4]}
5... b5 {[%clk 0:03:01.9]} 6. Qd2 {[%clk 0:02:54.2]} 6... Bb7 {[%clk 0:03:01.7]}
7. Bd3 {[%clk 0:02:52.2]} 7... Nd7 {[%clk 0:03:00.9]} 8. h4 {[%clk 0:02:50.6]}
8... h6 {[%clk 0:03:00.7]} 9. O-O-O {[%clk 0:02:44.3]} 9... e6 {[%clk
0:03:00.1]} 10. Rh3 {[%clk 0:02:38.6]} 10... Rc8 {[%clk 0:02:56.7]} 11. Rg3
{[%clk 0:02:32.1]} 11... c5 {[%clk 0:02:54.8]} 12. h5 {[%clk 0:02:22.3]} 12...
g5 {[%clk 0:02:51]} 13. dxc5 {[%clk 0:02:12]} 13... Nxc5 {[%clk 0:02:42.5]} 14.
Be2 {[%clk 0:01:24.9]} 14... b4 {[%clk 0:02:34.5]} 15. Bxc5 {[%clk 0:00:49.5]}
15... bxc3 {[%clk 0:02:17.8]} 16. Qxd6 {[%clk 0:00:47.6]} 16... cxb2+ {[%clk
0:02:17.5]} 17. Kb1 {[%clk 0:00:47.6]} 17... Qxd6 {[%clk 0:02:17.4]} 18. Bxd6
{[%clk 0:00:48.5]} 18... Bxe4 {[%clk 0:02:16.6]} 19. Ne1 {[%clk 0:00:44.6]}
19... Ne7 {[%clk 0:01:59.2]} 20. Bxa6 {[%clk 0:00:43.2]} 20... Rd8 {[%clk
0:01:59.8]} 21. Bb5+ {[%clk 0:00:34.1]} 21... Kf8 {[%clk 0:01:55.8]} 22. a4
{[%clk 0:00:27.6]} 22... Bf6 {[%clk 0:01:55.3]} 23. Re3 {[%clk 0:00:13]} 23...
Bf5 {[%clk 0:01:49.9]} 24. a5 {[%clk 0:00:08.6]} 24... Kg7 {[%clk 0:01:49.7]}
25. a6 {[%clk 0:00:08.7]} 25... Nd5 {[%clk 0:01:48.8]} 26. Rxd5 {[%clk
0:00:04.9]} 26... exd5 {[%clk 0:01:49.7]} 27. Ba3 {[%clk 0:00:03.2]} 27... Rb8
{[%clk 0:01:45.6]} 28. Rb3 {[%clk 0:00:02.5]} 28... Rhe8 {[%clk 0:01:34]} 29.
Nd3 {[%clk 0:00:01.7]} 29... Bxd3 {[%clk 0:01:18.1]} 30. Bxe8 {[%clk 0:00:01.5]}
30... Rxb3 {[%clk 0:01:17.1]} 0-1

[Event "Early-Titled-Tuesday-Blitz-August-29-2023"]
[Site "Chess.com"]
[Date "2023.08.29"]
[Round "4"]
[White "zozik"]
[Black "AnaKuchava"]
[Result "1/2-1/2"]
[WhiteElo "2364"]
[BlackElo "2195"]
[TimeControl "180+1"]
[EndTime "8:38:02 PDT"]
[Termination "Game drawn by repetition"]

1. d4 {[%clk 0:02:54.5]} 1... d5 {[%clk 0:02:59.5]} 2. Nf3 {[%clk 0:02:53]} 2...
Nf6 {[%clk 0:02:58.5]} 3. c4 {[%clk 0:02:48.4]} 3... e6 {[%clk 0:02:58.3]} 4.
Nc3 {[%clk 0:02:48.5]} 4... Be7 {[%clk 0:02:57.6]} 5. g3 {[%clk 0:02:49]} 5...
O-O {[%clk 0:02:53.9]} 6. Bg2 {[%clk 0:02:49.9]} 6... c6 {[%clk 0:02:54.2]} 7.
O-O {[%clk 0:02:49.6]} 7... b6 {[%clk 0:02:53.8]} 8. Nd2 {[%clk 0:02:46.9]} 8...
Bb7 {[%clk 0:02:49.6]} 9. e4 {[%clk 0:02:46.8]} 9... dxe4 {[%clk 0:02:44.4]} 10.
Ndxe4 {[%clk 0:02:47.7]} 10... Nbd7 {[%clk 0:02:44.4]} 11. Bf4 {[%clk
0:02:45.8]} 11... Nxe4 {[%clk 0:02:43.5]} 12. Nxe4 {[%clk 0:02:46.7]} 12... Nf6
{[%clk 0:02:43.9]} 13. Qd2 {[%clk 0:02:37.7]} 13... Qd7 {[%clk 0:02:31.4]} 14.
Rad1 {[%clk 0:02:32.6]} 14... Rfd8 {[%clk 0:02:26.5]} 15. Rfe1 {[%clk
0:02:31.3]} 15... h6 {[%clk 0:02:22.9]} 16. b3 {[%clk 0:02:31]} 16... c5 {[%clk
0:02:14.6]} 17. Nxf6+ {[%clk 0:02:26.4]} 17... Bxf6 {[%clk 0:02:15.5]} 18. d5
{[%clk 0:02:22.7]} 18... exd5 {[%clk 0:02:13.1]} 19. Bxd5 {[%clk 0:02:19.8]}
19... Bd4 {[%clk 0:02:13]} 20. Bxb7 {[%clk 0:02:16.9]} 20... Qxb7 {[%clk
0:02:12.5]} 21. Be3 {[%clk 0:02:16.1]} 21... Rd7 {[%clk 0:02:05.7]} 22. Bxd4
{[%clk 0:02:09.8]} 22... Rxd4 {[%clk 0:02:06.6]} 23. Qe3 {[%clk 0:02:08.8]}
23... Rad8 {[%clk 0:02:05.4]} 24. Rxd4 {[%clk 0:02:08.6]} 24... Rxd4 {[%clk
0:02:06.3]} 25. Qe7 {[%clk 0:02:07.8]} 25... Qd7 {[%clk 0:02:01.1]} 26. h4
{[%clk 0:01:59]} 26... Rd1 {[%clk 0:01:57.9]} 27. Qxd7 {[%clk 0:01:55.3]} 27...
Rxd7 {[%clk 0:01:58.8]} 28. Re2 {[%clk 0:01:51.4]} 28... h5 {[%clk 0:01:55.4]}
29. Kg2 {[%clk 0:01:49.9]} 29... g6 {[%clk 0:01:55.2]} 30. Kf3 {[%clk
0:01:50.1]} 30... Kg7 {[%clk 0:01:55.5]} 31. Kf4 {[%clk 0:01:50.1]} 31... Kf6
{[%clk 0:01:55.5]} 32. f3 {[%clk 0:01:46.3]} 32... Rd4+ {[%clk 0:01:55.1]} 33.
Ke3 {[%clk 0:01:46.4]} 33... Kf5 {[%clk 0:01:53]} 34. Rd2 {[%clk 0:01:44.7]}
34... Rxd2 {[%clk 0:01:50.4]} 35. Kxd2 {[%clk 0:01:45.6]} 35... f6 {[%clk
0:01:49.1]} 36. Ke3 {[%clk 0:01:45.5]} 36... g5 {[%clk 0:01:49.3]} 37. Ke2
{[%clk 0:01:34.7]} 37... gxh4 {[%clk 0:01:47.9]} 38. gxh4 {[%clk 0:01:35.6]}
38... Kf4 {[%clk 0:01:39.9]} 39. Kf2 {[%clk 0:01:34.8]} 39... f5 {[%clk
0:01:30]} 40. a3 {[%clk 0:01:33.9]} 40... a6 {[%clk 0:01:03.5]} 41. b4 {[%clk
0:01:31.6]} 41... a5 {[%clk 0:00:31.7]} 42. bxa5 {[%clk 0:01:30]} 42... bxa5
{[%clk 0:00:32.6]} 43. a4 {[%clk 0:01:30]} 43... Ke5 {[%clk 0:00:31.2]} 44. Ke3
{[%clk 0:01:29.7]} 44... f4+ {[%clk 0:00:31.3]} 45. Kd3 {[%clk 0:01:26.5]} 45...
Kf5 {[%clk 0:00:31.6]} 46. Kc3 {[%clk 0:01:25.4]} 46... Ke5 {[%clk 0:00:31.4]}
47. Kd3 {[%clk 0:01:25.9]} 47... Kf5 {[%clk 0:00:31.8]} 48. Kc3 {[%clk
0:01:26.5]} 48... Ke5 {[%clk 0:00:32.2]} 49. Kd3 {[%clk 0:01:27.4]} 1/2-1/2

[Event "Early-Titled-Tuesday-Blitz-August-29-2023"]
[Site "Chess.com"]
[Date "2023.08.29"]
[Round "4"]
[White "suyu28"]
[Black "Aswathchess"]
[Result "1-0"]
[WhiteElo "2737"]
[BlackElo "2493"]
[TimeControl "180+1"]
[EndTime "8:38:03 PDT"]
[Termination "suyu28 won by resignation"]

1. d4 {[%clk 0:02:57.1]} 1... Nf6 {[%clk 0:02:58.6]} 2. Bf4 {[%clk 0:02:57.7]}
2... d5 {[%clk 0:02:57]} 3. e3 {[%clk 0:02:58.2]} 3... c5 {[%clk 0:02:57.1]} 4.
c3 {[%clk 0:02:58.3]} 4... Nc6 {[%clk 0:02:57.2]} 5. Nd2 {[%clk 0:02:58.8]} 5...
g6 {[%clk 0:02:55.1]} 6. Ngf3 {[%clk 0:02:56.4]} 6... Bg7 {[%clk 0:02:55.3]} 7.
Bb5 {[%clk 0:02:55.9]} 7... O-O {[%clk 0:02:55.2]} 8. O-O {[%clk 0:02:55.6]}
8... cxd4 {[%clk 0:02:53.7]} 9. exd4 {[%clk 0:02:54.1]} 9... Nh5 {[%clk
0:02:52.9]} 10. Be3 {[%clk 0:02:53.3]} 10... Qc7 {[%clk 0:02:52.2]} 11. Re1
{[%clk 0:02:50.6]} 11... a6 {[%clk 0:02:51]} 12. Bf1 {[%clk 0:02:50]} 12... Nf4
{[%clk 0:02:41.5]} 13. Nb3 {[%clk 0:02:46.8]} 13... Bg4 {[%clk 0:02:37.8]} 14.
Qd2 {[%clk 0:02:42.8]} 14... Ne6 {[%clk 0:02:15.4]} 15. Be2 {[%clk 0:02:39.5]}
15... a5 {[%clk 0:02:09.8]} 16. a4 {[%clk 0:02:34.6]} 16... Qb6 {[%clk
0:02:07.1]} 17. Nc1 {[%clk 0:02:26.2]} 17... Nc7 {[%clk 0:02:02.7]} 18. h3
{[%clk 0:02:24.2]} 18... Bf5 {[%clk 0:02:02.2]} 19. Nd3 {[%clk 0:02:21.7]} 19...
Rfe8 {[%clk 0:01:55.1]} 20. Bf1 {[%clk 0:02:21.6]} 20... Rad8 {[%clk 0:01:48.5]}
21. Bf4 {[%clk 0:02:13.1]} 21... Ne6 {[%clk 0:01:47.4]} 22. Be3 {[%clk
0:02:07.7]} 22... Qc7 {[%clk 0:01:45.5]} 23. Nh4 {[%clk 0:02:02.5]} 23... Bxd3
{[%clk 0:01:43]} 24. Bxd3 {[%clk 0:02:01.9]} 24... Qd6 {[%clk 0:01:38.1]} 25.
Nf3 {[%clk 0:02:00.6]} 25... Rf8 {[%clk 0:01:28.1]} 26. Rad1 {[%clk 0:01:53.2]}
26... f6 {[%clk 0:01:20.9]} 27. h4 {[%clk 0:01:49]} 27... f5 {[%clk 0:01:07.9]}
28. Bh6 {[%clk 0:01:41.9]} 28... Bxh6 {[%clk 0:01:06]} 29. Qxh6 {[%clk
0:01:41.4]} 29... Qf4 {[%clk 0:01:06.3]} 30. Ng5 {[%clk 0:01:37.7]} 30... Nxg5
{[%clk 0:01:04.8]} 31. hxg5 {[%clk 0:01:38.6]} 31... Rf7 {[%clk 0:01:01.3]} 32.
Re6 {[%clk 0:01:35.3]} 32... Rd6 {[%clk 0:00:50.5]} 33. g3 {[%clk 0:01:27.7]}
33... Qg4 {[%clk 0:00:25]} 34. Be2 {[%clk 0:01:27.7]} 34... Rxe6 {[%clk
0:00:22.7]} 35. Bxg4 {[%clk 0:01:28.2]} 35... fxg4 {[%clk 0:00:23.6]} 36. Qh4
{[%clk 0:01:28.8]} 36... Re1+ {[%clk 0:00:23.8]} 37. Rxe1 {[%clk 0:01:24.4]} 1-0

[Event "Early-Titled-Tuesday-Blitz-August-29-2023"]
[Site "Chess.com"]
[Date "2023.08.29"]
[Round "4"]
[White "chess94cu"]
[Black "topin8"]
[Result "1-0"]
[WhiteElo "2707"]
[BlackElo "2475"]
[TimeControl "180+1"]
[EndTime "8:38:03 PDT"]
[Termination "chess94cu won on time"]

1. e4 {[%clk 0:03:00.9]} 1... c5 {[%clk 0:02:50.9]} 2. Nf3 {[%clk 0:03:00.8]}
2... Nc6 {[%clk 0:02:50.8]} 3. Bb5 {[%clk 0:03:00.4]} 3... g6 {[%clk 0:02:50.6]}
4. O-O {[%clk 0:03:00.3]} 4... Bg7 {[%clk 0:02:50.5]} 5. c3 {[%clk 0:03:01]}
5... Nf6 {[%clk 0:02:49]} 6. d4 {[%clk 0:03:01.7]} 6... cxd4 {[%clk 0:02:41.1]}
7. cxd4 {[%clk 0:03:02.6]} 7... d5 {[%clk 0:02:36]} 8. e5 {[%clk 0:03:01.7]}
8... Nd7 {[%clk 0:02:27.2]} 9. Nc3 {[%clk 0:02:58.9]} 9... Nb6 {[%clk
0:02:21.5]} 10. Bg5 {[%clk 0:02:35.9]} 10... h6 {[%clk 0:02:02.8]} 11. Be3
{[%clk 0:02:35.6]} 11... O-O {[%clk 0:01:52]} 12. Rc1 {[%clk 0:02:34.7]} 12...
Bd7 {[%clk 0:01:40.8]} 13. Qd2 {[%clk 0:02:31.3]} 13... Kh7 {[%clk 0:01:37.9]}
14. b3 {[%clk 0:02:32]} 14... Rc8 {[%clk 0:01:37.2]} 15. Ne1 {[%clk 0:02:25]}
15... f6 {[%clk 0:01:30.3]} 16. Bxc6 {[%clk 0:02:19.8]} 16... Rxc6 {[%clk
0:00:42.7]} 17. Nd3 {[%clk 0:02:19.5]} 17... Bf5 {[%clk 0:00:38.3]} 18. f4
{[%clk 0:02:11.9]} 18... fxe5 {[%clk 0:00:25.7]} 19. fxe5 {[%clk 0:02:01.3]}
19... g5 {[%clk 0:00:25.5]} 20. Nc5 {[%clk 0:01:57.4]} 20... Qb8 {[%clk
0:00:13.6]} 21. Rxf5 {[%clk 0:01:53.2]} 21... Rxf5 {[%clk 0:00:13.3]} 22. Qd3
{[%clk 0:01:53.8]} 22... Qf8 {[%clk 0:00:05.6]} 23. Rf1 {[%clk 0:01:37.2]} 23...
e6 {[%clk 0:00:04.6]} 24. Nxe6 {[%clk 0:01:35.2]} 24... Rxe6 {[%clk 0:00:04.5]}
25. Rxf5 {[%clk 0:01:35.4]} 25... Rg6 {[%clk 0:00:01.8]} 26. Rxf8 {[%clk
0:01:34.7]} 26... Bxf8 {[%clk 0:00:02.7]} 27. Qf5 {[%clk 0:01:31.8]} 27... Kg7
{[%clk 0:00:03.1]} 28. a4 {[%clk 0:01:28.1]} 28... Bb4 {[%clk 0:00:01.5]} 29.
Nb5 {[%clk 0:01:24]} 29... Rc6 {[%clk 0:00:02.4]} 30. h4 {[%clk 0:01:22.9]}
30... gxh4 {[%clk 0:00:01.3]} 31. e6 {[%clk 0:01:21.6]} 1-0

[Event "Early-Titled-Tuesday-Blitz-August-29-2023"]
[Site "Chess.com"]
[Date "2023.08.29"]
[Round "4"]
[White "wannabe2700"]
[Black "crazy_m_attack"]
[Result "1-0"]
[WhiteElo "2641"]
[BlackElo "2337"]
[TimeControl "180+1"]
[EndTime "8:38:06 PDT"]
[Termination "wannabe2700 won by resignation"]

1. Nf3 {[%clk 0:02:48.8]} 1... Nf6 {[%clk 0:02:59.6]} 2. d3 {[%clk 0:02:47.7]}
2... d5 {[%clk 0:02:58.6]} 3. Nbd2 {[%clk 0:02:46.9]} 3... g6 {[%clk 0:02:55.9]}
4. e4 {[%clk 0:02:46.6]} 4... dxe4 {[%clk 0:02:53.6]} 5. dxe4 {[%clk 0:02:47.5]}
5... Nc6 {[%clk 0:02:52.2]} 6. Bb5 {[%clk 0:02:45.6]} 6... Bd7 {[%clk
0:02:38.7]} 7. e5 {[%clk 0:02:40.4]} 7... Nxe5 {[%clk 0:02:17.5]} 8. Bxd7+
{[%clk 0:02:30.5]} 8... Nexd7 {[%clk 0:02:18.4]} 9. Qe2 {[%clk 0:02:19.5]} 9...
Bg7 {[%clk 0:02:15.4]} 10. Qb5 {[%clk 0:02:19.5]} 10... Rb8 {[%clk 0:02:02.7]}
11. Nb3 {[%clk 0:02:17]} 11... O-O {[%clk 0:02:00.4]} 12. Bf4 {[%clk 0:02:15.4]}
12... Nh5 {[%clk 0:01:29]} 13. Bc1 {[%clk 0:02:06.1]} 13... c6 {[%clk
0:01:26.1]} 14. Qa4 {[%clk 0:02:06.2]} 14... a6 {[%clk 0:01:07.3]} 15. O-O
{[%clk 0:02:05.3]} 15... e5 {[%clk 0:01:02.3]} 16. Rd1 {[%clk 0:02:03.7]} 16...
Qc7 {[%clk 0:01:01.6]} 17. Be3 {[%clk 0:01:58.1]} 17... Nhf6 {[%clk 0:00:45.6]}
18. c4 {[%clk 0:01:56.2]} 18... b5 {[%clk 0:00:40.6]} 19. Qb4 {[%clk 0:01:47.9]}
19... c5 {[%clk 0:00:35.7]} 20. Nxc5 {[%clk 0:01:46.6]} 20... bxc4 {[%clk
0:00:33.6]} 21. Qxc4 {[%clk 0:01:41.7]} 21... Rxb2 {[%clk 0:00:29.6]} 22. Qc1
{[%clk 0:01:35.9]} 22... Rb5 {[%clk 0:00:14.1]} 23. Nxd7 {[%clk 0:01:35.7]}
23... Qxc1 {[%clk 0:00:05.3]} 24. Nxf6+ {[%clk 0:01:35.2]} 24... Bxf6 {[%clk
0:00:06.2]} 25. Raxc1 {[%clk 0:01:35.6]} 25... Ra5 {[%clk 0:00:06.5]} 26. Rc2
{[%clk 0:01:34.9]} 26... e4 {[%clk 0:00:07]} 27. Nd2 {[%clk 0:01:31.1]} 27...
Rd5 {[%clk 0:00:06.6]} 28. Rdc1 {[%clk 0:01:30.2]} 28... Bg7 {[%clk 0:00:03.4]}
29. Nxe4 {[%clk 0:01:29.4]} 29... f5 {[%clk 0:00:03.9]} 30. Nc3 {[%clk
0:01:28.5]} 30... Ra5 {[%clk 0:00:03]} 31. Bb6 {[%clk 0:01:27.5]} 31... Ra3
{[%clk 0:00:02.7]} 32. Bc5 {[%clk 0:01:27.6]} 32... Rxc3 {[%clk 0:00:02]} 33.
Rxc3 {[%clk 0:01:27.8]} 33... Rf7 {[%clk 0:00:01.8]} 34. Rc4 {[%clk 0:01:27.9]}
34... Rc7 {[%clk 0:00:02.1]} 35. Bd4 {[%clk 0:01:26.8]} 35... Rd7 {[%clk
0:00:02.7]} 36. Rc8+ {[%clk 0:01:26.2]} 36... Kf7 {[%clk 0:00:02.8]} 37. R8c7
{[%clk 0:01:25.5]} 1-0

[Event "Early-Titled-Tuesday-Blitz-August-29-2023"]
[Site "Chess.com"]
[Date "2023.08.29"]
[Round "4"]
[White "gshwbedhkhd"]
[Black "MetiForce"]
[Result "0-1"]
[WhiteElo "2590"]
[BlackElo "2901"]
[TimeControl "180+1"]
[EndTime "8:38:07 PDT"]
[Termination "MetiForce won by resignation"]

1. e4 {[%clk 0:03:00.9]} 1... c5 {[%clk 0:02:58.3]} 2. Nf3 {[%clk 0:03:00.8]}
2... d6 {[%clk 0:02:58.8]} 3. d4 {[%clk 0:02:53.4]} 3... cxd4 {[%clk 0:02:59.7]}
4. Nxd4 {[%clk 0:02:53.9]} 4... Nf6 {[%clk 0:03:00.3]} 5. Nc3 {[%clk 0:02:54.4]}
5... Nc6 {[%clk 0:03:00]} 6. Nd5 {[%clk 0:02:54]} 6... Nxd5 {[%clk 0:02:38.8]}
7. exd5 {[%clk 0:02:54.9]} 7... Qa5+ {[%clk 0:02:39.1]} 8. Bd2 {[%clk
0:02:53.5]} 8... Qxd5 {[%clk 0:02:39.6]} 9. Nb5 {[%clk 0:02:54]} 9... Qe6+
{[%clk 0:02:37.6]} 10. Be2 {[%clk 0:02:54.5]} 10... Qd7 {[%clk 0:02:38.3]} 11.
c4 {[%clk 0:02:55]} 11... e6 {[%clk 0:02:34.1]} 12. O-O {[%clk 0:02:54.8]} 12...
Be7 {[%clk 0:02:31.4]} 13. Bf4 {[%clk 0:02:55.4]} 13... e5 {[%clk 0:02:30.2]}
14. Be3 {[%clk 0:02:55.2]} 14... O-O {[%clk 0:02:29.6]} 15. Qd2 {[%clk 0:02:55]}
15... b6 {[%clk 0:02:26.8]} 16. Rad1 {[%clk 0:02:50.7]} 16... Rd8 {[%clk
0:02:26.8]} 17. f4 {[%clk 0:02:48.7]} 17... Bb7 {[%clk 0:02:16.6]} 18. Bf3
{[%clk 0:02:46.3]} 18... Na5 {[%clk 0:02:15.2]} 19. b3 {[%clk 0:02:44.2]} 19...
e4 {[%clk 0:02:06.9]} 20. Be2 {[%clk 0:02:42.9]} 20... d5 {[%clk 0:02:06.5]} 21.
b4 {[%clk 0:02:18]} 21... a6 {[%clk 0:01:34.1]} 22. Bxb6 {[%clk 0:01:53.9]}
22... axb5 {[%clk 0:01:33.8]} 23. Bxd8 {[%clk 0:01:52.7]} 23... Qxd8 {[%clk
0:01:34.1]} 24. bxa5 {[%clk 0:01:51.4]} 24... bxc4 {[%clk 0:01:34.5]} 25. Rb1
{[%clk 0:01:42.3]} 25... Bc6 {[%clk 0:01:33.4]} 26. Rfd1 {[%clk 0:01:38.7]}
26... Qc7 {[%clk 0:01:14.6]} 27. Kh1 {[%clk 0:01:23.3]} 27... Rxa5 {[%clk
0:01:12.7]} 28. Rb2 {[%clk 0:01:04]} 28... h6 {[%clk 0:01:01.5]} 29. Rdb1 {[%clk
0:00:59.1]} 29... Bf6 {[%clk 0:01:01.3]} 30. Rb8+ {[%clk 0:00:57.4]} 30... Kh7
{[%clk 0:01:01.9]} 31. Bg4 {[%clk 0:00:52.4]} 31... c3 {[%clk 0:01:00.2]} 32.
Qc2 {[%clk 0:00:42.9]} 32... Qxf4 {[%clk 0:00:55.2]} 33. Bh3 {[%clk 0:00:42.3]}
33... d4 {[%clk 0:00:51.8]} 34. Qb3 {[%clk 0:00:37.6]} 34... Be5 {[%clk
0:00:45.1]} 0-1

[Event "Early-Titled-Tuesday-Blitz-August-29-2023"]
[Site "Chess.com"]
[Date "2023.08.29"]
[Round "4"]
[White "Magila31"]
[Black "Fraler15"]
[Result "1-0"]
[WhiteElo "2471"]
[BlackElo "2242"]
[TimeControl "180+1"]
[EndTime "8:38:07 PDT"]
[Termination "Magila31 won on time"]

1. d4 {[%clk 0:02:58.9]} 1... d5 {[%clk 0:02:59]} 2. c4 {[%clk 0:02:58.3]} 2...
e6 {[%clk 0:02:58.6]} 3. Nc3 {[%clk 0:02:57.7]} 3... Nf6 {[%clk 0:02:56.5]} 4.
cxd5 {[%clk 0:02:56.9]} 4... exd5 {[%clk 0:02:56.2]} 5. Bg5 {[%clk 0:02:56.5]}
5... Be7 {[%clk 0:02:51.9]} 6. e3 {[%clk 0:02:56.5]} 6... O-O {[%clk 0:02:49.5]}
7. Qc2 {[%clk 0:02:56.5]} 7... h6 {[%clk 0:02:48.8]} 8. Bf4 {[%clk 0:02:54.4]}
8... c5 {[%clk 0:02:44.3]} 9. Nf3 {[%clk 0:02:52.3]} 9... Nc6 {[%clk 0:02:41.6]}
10. Be2 {[%clk 0:02:49.8]} 10... cxd4 {[%clk 0:02:41]} 11. exd4 {[%clk
0:02:48.3]} 11... Bg4 {[%clk 0:02:37]} 12. Rd1 {[%clk 0:02:43.3]} 12... Rc8
{[%clk 0:02:26.9]} 13. O-O {[%clk 0:02:41.5]} 13... Bh5 {[%clk 0:02:07.9]} 14.
Ne5 {[%clk 0:02:28.2]} 14... Bxe2 {[%clk 0:02:05]} 15. Qxe2 {[%clk 0:02:28.4]}
15... Re8 {[%clk 0:01:58.6]} 16. Qf3 {[%clk 0:02:24.6]} 16... Bb4 {[%clk
0:01:30]} 17. Ne2 {[%clk 0:02:10.8]} 17... Ne4 {[%clk 0:01:24.9]} 18. Nxf7
{[%clk 0:02:03.8]} 18... Kxf7 {[%clk 0:01:22.1]} 19. Bd6+ {[%clk 0:01:38.9]}
19... Qf6 {[%clk 0:01:19.3]} 20. Bxb4 {[%clk 0:01:38.5]} 20... Nxb4 {[%clk
0:01:13]} 21. Qb3 {[%clk 0:01:38.5]} 21... Rc4 {[%clk 0:01:02.5]} 22. Nc3 {[%clk
0:01:33.8]} 22... Nxc3 {[%clk 0:00:53.4]} 23. bxc3 {[%clk 0:01:33.3]} 23... Nc6
{[%clk 0:00:53]} 24. Qxb7+ {[%clk 0:01:33.3]} 24... Re7 {[%clk 0:00:52.7]} 25.
Qb3 {[%clk 0:01:26.2]} 25... a5 {[%clk 0:00:49.6]} 26. h3 {[%clk 0:01:22.3]}
26... a4 {[%clk 0:00:49.3]} 27. Qb2 {[%clk 0:01:22.1]} 27... Qf5 {[%clk
0:00:42.3]} 28. Rfe1 {[%clk 0:01:16.9]} 28... Rxe1+ {[%clk 0:00:40.8]} 29. Rxe1
{[%clk 0:01:17.1]} 29... Ne7 {[%clk 0:00:40.9]} 30. Qb7 {[%clk 0:01:14.9]} 30...
Qg5 {[%clk 0:00:09.9]} 31. Re3 {[%clk 0:01:14.7]} 31... Kf8 {[%clk 0:00:05]} 32.
Qd7 {[%clk 0:01:11.3]} 1-0

[Event "Early-Titled-Tuesday-Blitz-August-29-2023"]
[Site "Chess.com"]
[Date "2023.08.29"]
[Round "4"]
[White "artin10862"]
[Black "TrenerChos"]
[Result "1-0"]
[WhiteElo "2810"]
[BlackElo "2550"]
[TimeControl "180+1"]
[EndTime "8:38:14 PDT"]
[Termination "artin10862 won by resignation"]

1. e4 {[%clk 0:03:00.9]} 1... c5 {[%clk 0:02:58.7]} 2. Nf3 {[%clk 0:03:01.4]}
2... Nc6 {[%clk 0:02:59.6]} 3. Bb5 {[%clk 0:02:59.9]} 3... Nf6 {[%clk
0:02:58.4]} 4. e5 {[%clk 0:02:47.8]} 4... Nd5 {[%clk 0:02:58.3]} 5. O-O {[%clk
0:02:47.8]} 5... g6 {[%clk 0:02:58]} 6. Re1 {[%clk 0:02:45.6]} 6... Bg7 {[%clk
0:02:57.6]} 7. Bxc6 {[%clk 0:02:41]} 7... dxc6 {[%clk 0:02:56.7]} 8. h3 {[%clk
0:02:40.9]} 8... O-O {[%clk 0:02:56.4]} 9. d3 {[%clk 0:02:41.5]} 9... h6 {[%clk
0:02:54.4]} 10. Nbd2 {[%clk 0:02:39.8]} 10... b6 {[%clk 0:02:53.5]} 11. Ne4
{[%clk 0:02:39.1]} 11... Ba6 {[%clk 0:02:52.9]} 12. Bd2 {[%clk 0:02:33.9]} 12...
Qc7 {[%clk 0:02:51.9]} 13. c4 {[%clk 0:02:10.1]} 13... Nb4 {[%clk 0:02:48.8]}
14. Bxb4 {[%clk 0:02:00.6]} 14... cxb4 {[%clk 0:02:49.7]} 15. Qa4 {[%clk
0:01:59.3]} 15... Bb7 {[%clk 0:02:45]} 16. Qxb4 {[%clk 0:01:58.9]} 16... Bxe5
{[%clk 0:02:44.8]} 17. Nxe5 {[%clk 0:01:48.3]} 17... Qxe5 {[%clk 0:02:45.7]} 18.
Nc3 {[%clk 0:01:42.5]} 18... Qd4 {[%clk 0:02:32.2]} 19. Qxe7 {[%clk 0:01:39.7]}
19... Bc8 {[%clk 0:02:26.6]} 20. Qe5 {[%clk 0:01:34.7]} 20... Qxe5 {[%clk
0:02:23.6]} 21. Rxe5 {[%clk 0:01:34.2]} 21... Bf5 {[%clk 0:02:24.2]} 22. d4
{[%clk 0:01:33.2]} 22... Rfd8 {[%clk 0:02:22.2]} 23. Rd1 {[%clk 0:01:32.7]}
23... Rd6 {[%clk 0:02:21.2]} 24. d5 {[%clk 0:01:22.6]} 24... Kf8 {[%clk
0:02:20.2]} 25. Rde1 {[%clk 0:01:17.2]} 25... Rad8 {[%clk 0:02:17.3]} 26. Re7
{[%clk 0:01:14.3]} 26... b5 {[%clk 0:02:13]} 27. c5 {[%clk 0:01:09.5]} 27...
R6d7 {[%clk 0:02:11.5]} 28. Rxd7 {[%clk 0:00:58.3]} 28... Bxd7 {[%clk
0:02:12.2]} 29. d6 {[%clk 0:00:57.6]} 29... Be6 {[%clk 0:02:09.1]} 30. Ne2
{[%clk 0:00:47.7]} 30... Bxa2 {[%clk 0:02:05.7]} 31. Ra1 {[%clk 0:00:47.4]}
31... Re8 {[%clk 0:02:00.3]} 32. Rxa2 {[%clk 0:00:40.5]} 32... Rxe2 {[%clk
0:01:59.2]} 33. Rxa7 {[%clk 0:00:41.4]} 33... Ke8 {[%clk 0:01:52.2]} 34. b4
{[%clk 0:00:34.3]} 34... Re1+ {[%clk 0:01:49.4]} 35. Kh2 {[%clk 0:00:34.2]}
35... Re4 {[%clk 0:01:48.9]} 36. Rc7 {[%clk 0:00:30.4]} 36... Rxb4 {[%clk
0:01:48.2]} 37. Rxc6 {[%clk 0:00:31]} 37... Rb2 {[%clk 0:01:48.3]} 38. Rc8+
{[%clk 0:00:29]} 38... Kd7 {[%clk 0:01:47.7]} 39. Rc7+ {[%clk 0:00:29.9]} 39...
Ke6 {[%clk 0:01:47.8]} 40. Re7+ {[%clk 0:00:27.8]} 40... Kf6 {[%clk 0:01:47.6]}
41. c6 {[%clk 0:00:27.9]} 41... Rc2 {[%clk 0:01:46.3]} 42. c7 {[%clk 0:00:27.7]}
42... b4 {[%clk 0:01:36.2]} 43. Re8 {[%clk 0:00:25.7]} 43... b3 {[%clk
0:01:36.5]} 44. d7 {[%clk 0:00:25.3]} 1-0